[Event "79th GEO-ch 2020"]
[Site "Tbilisi"]
[Date "2020.01.30"]
[Round "1.2"]
[White "Pantsulaia, Levan"]
[Black "Patsia, Zviad"]
[Result "1/2-1/2"]
[ECO "A15"]
[WhiteElo "2598"]
[BlackElo "2197"]
[Annotator "ChessBase"]
[PlyCount "110"]
[EventDate "2020.01.29"]
[EventType "k.o."]
[EventCountry "GEO"]
[SourceTitle "playchess.com"]
[Source "ChessBase"]
[SourceQuality "1"]
[TimeControl "40/5400+30:1800+30"]

1. c4 {[%emt 0:00:00]} Nf6 {[%emt 0:00:07]} 2. g3 {[%emt 0:00:52]} c6 {[%emt 0:00:43]} 3. Bg2 {[%emt 0:00:26]} d5 {[%emt 0:00:06]} 4. Nf3 {[%emt 0:00:06]} dxc4 {[%emt 0:00:20]} 5. O-O {[%emt 0:00:51]} Nbd7 {[%emt 0:00:45]} 6. Qc2 {[%emt 0:00:27]} Nb6 {[%emt 0:00:48]} 7. a4 {[%emt 0:00:18]} a5 {[%emt 0:00:59]} 8. Na3 {[%emt 0:00:07]} Be6 {[%emt 0:05:15]} 9. Ne5 {[%emt 0:02:14]} Qd4 {[%emt 0:12:47]} 10. Nxc6 {[%emt 0:00:44]} bxc6 {[%emt 0:00:11]} 11. Bxc6+ {[%emt 0:00:05]} Nfd7 {[%emt 0:04:04]} 12. Nb5 {[%emt 0:08:55]} Qe5 {[%emt 0:03:36]} 13. Bxa8 {[%emt 0:01:12]} Nxa8 {[%emt 0:00:05]} 14. d4 {[%emt 0:00:15]} Qh5 {[%emt 0:23:17]} 15. f3 {[%emt 0:10:33]} g6 {[%emt 0:03:26]} 16. e4 {[%emt 0:02:19]} Bg7 {[%emt 0:05:05]} 17. Bd2 {[%emt 0:13:23]} O-O {[%emt 0:00:14]} 18. Bxa5 {[%emt 0:03:00]} Bxd4+ {[%emt 0:00:31]} 19. Nxd4 {[%emt 0:00:24]} Qxa5 {[%emt 0:00:06]} 20. Nxe6 {[%emt 0:07:18]} Qb6+ {[%emt 0:00:50]} 21. Kg2 {[%emt 0:18:39]} Qxe6 {[%emt 0:00:09]} 22. Rac1 {[%emt 0:01:36]} Ne5 {[%emt 0:02:44]} 23. f4 {[%emt 0:00:11]} Nd3 {[%emt 0:00:57]} 24. Qxc4 {[%emt 0:00:06]} Nxc1 {[%emt 0:00:57]} 25. Qxe6 {[%emt 0:00:06]} fxe6 {[%emt 0:00:03]} 26. Rxc1 {[%emt 0:00:06]} Rb8 {[%emt 0:08:08]} 27. b4 {[%emt 0:00:11]} Kf7 {[%emt 0:11:50]} 28. b5 {[%emt 0:00:45]} Rb7 {[%emt 0:06:04]} 29. Rc6 {[%emt 0:01:21]} Ra7 {[%emt 0:09:50]} 30. Ra6 {[%emt 0:05:16]} Rxa6 {[%emt 0:00:09]} 31. bxa6 {[%emt 0:00:03]} Ke8 {[%emt 0:00:28]} 32. Kf3 {[%emt 0:00:28]} Kd7 {[%emt 0:00:06]} 33. Kg4 {[%emt 0:00:27]} Ke8 {[%emt 0:00:57]} 34. Kg5 {[%emt 0:02:22]} Kf7 {[%emt 0:00:05]} 35. Kh6 {[%emt 0:00:16]} Kg8 {[%emt 0:00:32]} 36. h4 {[%emt 0:01:39]} Kh8 {[%emt 0:00:03]} 37. g4 {[%emt 0:00:41]} Kg8 {[%emt 0:00:06]} 38. h5 {[%emt 0:01:12]} gxh5 {[%emt 0:00:05]} 39. Kxh5 {[%emt 0:00:04]} Kg7 {[%emt 0:00:23]} 40. g5 {[%emt 0:00:00]} Nc7 {[%emt 0:00:00]} 41. a7 {[%emt 0:03:53]} Na8 {[%emt 0:01:41]} 42. Kg4 {[%emt 0:03:27]} h6 {[%emt 0:08:53]} 43. Kf3 {[%emt 0:03:31]} Kg6 {[%emt 0:11:29]} 44. gxh6 {[%emt 0:00:36]} Kxh6 {[%emt 0:00:04]} 45. Ke3 {[%emt 0:00:48]} Kg6 {[%emt 0:00:32]} 46. Kd4 {[%emt 0:00:25]} Kf7 {[%emt 0:00:06]} 47. Kc5 {[%emt 0:02:27]} Ke8 {[%emt 0:00:06]} 48. Kc6 {[%emt 0:00:28]} Kd8 {[%emt 0:00:04]} 49. Kb7 {[%emt 0:00:20]} Kd7 {[%emt 0:00:03]} 50. a5 {[%emt 0:00:27]} Kd8 {[%emt 0:00:04]} 51. a6 {[%emt 0:01:45]} Kd7 {[%emt 0:00:03]} 52. e5 {[%emt 0:00:34]} Kd8 {[%emt 0:00:02]} 53. Kxa8 {[%emt 0:00:20]} Kc8 {[%emt 0:00:04]} 54. f5 {[%emt 0:00:08]} exf5 {[%emt 0:00:03]} 55. e6 {[%emt 0:00:04]} Kc7 {[%emt 0:00:02]} 1/2-1/2

[Event "79th GEO-ch 2020"]
[Site "Tbilisi"]
[Date "2020.01.30"]
[Round "1.2"]
[White "Jojua, Davit"]
[Black "Morchiashvili, Bachana"]
[Result "0-1"]
[ECO "A41"]
[WhiteElo "2563"]
[BlackElo "2312"]
[Annotator "RC"]
[PlyCount "182"]
[EventDate "2020.01.29"]
[EventType "k.o."]
[EventCountry "GEO"]
[SourceTitle "playchess.com"]
[Source "ChessBase"]
[SourceQuality "1"]
[TimeControl "40/5400+30:1800+30"]

1. d4 {[%emt 0:00:00]} g6 {[%emt 0:00:00]} 2. c4 {[%emt 0:00:44]} Bg7 {[%emt 0:00:24]} 3. Nc3 {[%emt 0:00:04]} d6 {[%emt 0:02:00]} 4. Nf3 {[%emt 0:01:40]} Bg4 {[%emt 0:06:54]} 5. g3 {[%emt 0:07:27]} Bxf3 {[%emt 0:04:09]} 6. exf3 {[%emt 0:00:03]} Nc6 {[%emt 0:00:10]} 7. d5 {[%emt 0:04:23]} Nd4 {[%emt 0:00:10]} 8. Bg2 {[%emt 0:04:43]} c5 {[%emt 0:03:45]} 9. dxc6 {[%emt 0:00:20]} bxc6 {[%emt 0:01:34]} 10. O-O {[%emt 0:05:07]} c5 {[%emt 0:11:53]} 11. Ne2 {[%emt 0:15:31]} Nf5 {[%emt 0:16:18]} 12. Bh3 {[%emt 0:08:17]} Nf6 {[%emt 0:10:23]} 13. Bxf5 {[%emt 0:09:12]} gxf5 {[%emt 0:00:02]} 14. Qd3 {[%emt 0:00:33]} Qc8 {[%emt 0:04:24]} 15. Re1 {[%emt 0:11:25]} O-O {[%emt 0:03:52]} 16. Nc3 {[%emt 0:03:39]} e6 {[%emt 0:07:38]} 17. Bg5 {[%emt 0:08:02]} Rb8 {[%emt 0:03:50]} 18. b3 {[%emt 0:05:56]} Rb6 {[%emt 0:02:19]} 19. Rad1 {[%emt 0:03:47]} a6 {[%emt 0:09:34]} 20. Qe3 {[%emt 0:01:15]} Qb7 {[%emt 0:05:59]} 21. Bh6 {[%emt 0:02:09]} Bxh6 {[%emt 0:01:00]} 22. Qxh6 {[%emt 0:00:01]} Ne8 {[%emt 0:00:26]} 23. Rd3 {[%emt 0:01:43]} Ng7 {[%emt 0:02:01]} 24. Qd2 {[%emt 0:02:32]} Rc6 {[%emt 0:01:38]} 25. Kg2 {[%emt 0:01:19]} Qe7 {[%emt 0:00:38]} 26. Rd1 {[%emt 0:01:40]} Qf6 {[%emt 0:00:18]} 27. Qe3 {[%emt 0:01:08]} Rd8 {[%emt 0:01:34]} 28. f4 {[%emt 0:00:06]} Ne8 {[%emt 0:00:20]} 29. Qf3 {[%emt 0:00:23]} Rdc8 {[%emt 0:00:18]} 30. Re1 {[%emt 0:00:43]} Qd8 {[%emt 0:00:31]} 31. Red1 {[%emt 0:00:57]} Nf6 {[%emt 0:00:24]} 32. R1d2 {[%emt 0:00:08]} Qc7 {[%emt 0:00:29]} 33. Kg1 {[%emt 0:00:26]} Kg7 {[%emt 0:00:07]} 34. Qd1 {[%emt 0:00:49]} Rd8 {[%emt 0:00:20]} 35. Qf3 {[%emt 0:00:07]} h5 {[%emt 0:00:16]} 36. h3 {[%emt 0:00:39]} Rb6 {[%emt 0:00:33]} 37. Kf1 {[%emt 0:00:52]} Qc6 {[%emt 0:00:45]} 38. Kg2 {[%emt 0:00:36]} Kf8 {[%emt 0:00:23]} 39. Na4 {[%emt 0:00:29]} Qxf3+ {[%emt 0:00:10]} 40. Kxf3 {[%emt 0:00:00]} Rc6 {[%emt 0:00:00]} 41. Nc3 {[%emt 0:01:21]} Ke7 {[%emt 0:02:08]} 42. h4 {[%emt 0:02:28]} Kd7 {[%emt 0:01:34]} 43. Rd1 {[%emt 0:01:48]} Kc7 {[%emt 0:01:34]} 44. Ke3 {[%emt 0:02:13]} Rb6 {[%emt 0:00:46]} 45. Na4 {[%emt 0:03:01]} Rbb8 {[%emt 0:01:28]} 46. f3 {[%emt 0:00:09]} Ng8 {[%emt 0:01:51]} 47. R3d2 {[%emt 0:03:11]} Ne7 {[%emt 0:00:29]} 48. Nc3 {[%emt 0:00:57]} Nc6 {[%emt 0:00:35]} 49. Kf2 {[%emt 0:01:57]} Nd4 {[%emt 0:03:19]} 50. Rd3 {[%emt 0:03:07]} Kc6 {[%emt 0:01:34]} 51. Rg1 {[%emt 0:02:56]} Rg8 {[%emt 0:03:03]} 52. Rd2 {[%emt 0:00:33]} Rg6 {[%emt 0:02:05]} 53. Rdd1 {[%emt 0:01:02]} Rbg8 {[%emt 0:01:47]} 54. Rde1 {[%emt 0:00:40]} Kd7 {[%emt 0:00:41]} 55. Na4 {[%emt 0:02:25]} Kc6 {[%emt 0:03:53]} 56. Nc3 {[%emt 0:00:05]} Rb8 {[%emt 0:00:54]} 57. Rd1 {[%emt 0:00:52]} Rg7 {[%emt 0:01:12]} 58. Rde1 {[%emt 0:00:37]} Rgg8 {[%emt 0:01:04]} 59. Re3 {[%emt 0:01:27]} Rb4 {[%emt 0:00:18]} 60. Rd3 {[%emt 0:01:03]} a5 {[%emt 0:00:16]} 61. Rgd1 {[%emt 0:01:19]} Ra8 {[%emt 0:01:44]} 62. Nb5 {[%emt 0:04:34]} Rxb5 {[%emt 0:01:01]} 63. cxb5+ {[%emt 0:00:01]} Kxb5 {[%emt 0:01:51]} 64. Rb1 {[%emt 0:01:34]} d5 {[%emt 0:01:23]} 65. Rc3 {[%emt 0:01:14]} Kb4 {[%emt 0:02:13]} 66. Rcc1 {[%emt 0:01:14]} Rc8 {[%emt 0:01:05]} 67. Rg1 {[%emt 0:01:40]} Ka3 {[%emt 0:01:55]} 68. g4 {[%emt 0:00:48]} fxg4 {[%emt 0:00:29]} 69. fxg4 {[%emt 0:00:01]} hxg4 {[%emt 0:00:06]} 70. Rxg4 {[%emt 0:00:19]} Kxa2 {[%emt 0:00:17]} 71. Rh1 {[%emt 0:00:21]} Rh8 {[%emt 0:03:09]} 72. h5 {[%emt 0:01:17]} Nf5 {[%emt 0:01:01]} 73. Rh3 {[%emt 0:00:01]} d4 {[%emt 0:00:48]} 74. Rg1 {[%emt 0:00:27]} Kb2 {[%emt 0:00:32]} 75. Re1 {[%emt 0:00:57]} Ne3 {[%emt 0:00:32]} 76. Rg1 {[%emt 0:00:52]} Rh6 {[%emt 0:00:41]} 77. Rg7 {[%emt 0:00:03]} Kxb3 {[%emt 0:00:29]} 78. Rxf7 {[%emt 0:00:01]} c4 {[%emt 0:00:17]} 79. Rd7 {[%emt 0:00:57]} Kc3 {[%emt 0:00:15]} 80. Rd6 {[%emt 0:00:19]} a4 {[%emt 0:01:12]} 81. f5 {[%emt 0:00:01]} a3 {[%emt 0:00:42]} 82. fxe6 {[%emt 0:00:48]} a2 {[%emt 0:00:03]} 83. Ra6 {[%emt 0:00:12]} Rf6+ {[%emt 0:00:09]} 84. Kg3 {[%emt 0:01:33]} Rxe6 {[%emt 0:00:06]} 85. Rxa2 {[%emt 0:00:10]} d3 {[%emt 0:00:22]} 86. Kf4 {[%emt 0:00:54]} d2 {[%emt 0:00:53]} 87. Ra1 {[%emt 0:00:18]} Kb2 {[%emt 0:00:19]} 88. Rah1 {[%emt 0:00:46]} Ng2+ {[%emt 0:01:08]} 89. Kg3 {[%emt 0:00:30]} Re1 {[%emt 0:00:35]} 90. h6 {[%emt 0:00:27]} d1=Q {[%emt 0:00:07]} 91. h7 {[%emt 0:00:17]} Re3+ {[%emt 0:00:38]} 0-1

[Event "79th GEO-ch 2020"]
[Site "Tbilisi"]
[Date "2020.01.30"]
[Round "1.2"]
[White "Paichadze, Luka"]
[Black "Tutisani, Noe"]
[Result "1/2-1/2"]
[ECO "B01"]
[WhiteElo "2550"]
[BlackElo "2429"]
[Annotator "ChessBase"]
[PlyCount "113"]
[EventDate "2020.01.29"]
[EventType "k.o."]
[EventCountry "GEO"]
[SourceTitle "playchess.com"]
[Source "ChessBase"]
[SourceQuality "1"]
[TimeControl "40/5400+30:1800+30"]

1. e4 {[%emt 0:00:00]} d5 {[%emt 0:00:46]} 2. exd5 {[%emt 0:00:00]} Qxd5 {[%emt 0:00:06]} 3. Nc3 {[%emt 0:00:00]} Qa5 {[%emt 0:00:08]} 4. d4 {[%emt 0:02:30]} Nf6 {[%emt 0:00:08]} 5. Be3 {[%emt 0:03:41]} Bf5 {[%emt 0:03:56]} 6. Bb5+ {[%emt 0:06:18]} c6 {[%emt 0:03:00]} 7. Bd3 {[%emt 0:00:06]} e6 {[%emt 0:02:20]} 8. Nge2 {[%emt 0:03:56]} Nbd7 {[%emt 0:01:49]} 9. O-O {[%emt 0:01:02]} O-O-O {[%emt 0:11:01]} 10. a3 {[%emt 0:02:29]} Bxd3 {[%emt 0:03:16]} 11. cxd3 {[%emt 0:02:02]} Nb6 {[%emt 0:04:55]} 12. Qc2 {[%emt 0:16:49]} Nbd5 {[%emt 0:08:08]} 13. b4 {[%emt 0:04:38]} Qc7 {[%emt 0:00:28]} 14. h3 {[%emt 0:01:55]} Nxc3 {[%emt 0:19:44]} 15. Nxc3 {[%emt 0:00:10]} Nd5 {[%emt 0:00:07]} 16. Rfc1 {[%emt 0:00:55]} Kb8 {[%emt 0:05:32]} 17. Qd2 {[%emt 0:11:27]} Nxc3 {[%emt 0:04:31]} 18. Rxc3 {[%emt 0:02:25]} Rd5 {[%emt 0:00:05]} 19. Rb1 {[%emt 0:00:12]} Qd7 {[%emt 0:00:16]} 20. a4 {[%emt 0:00:59]} Bd6 {[%emt 0:05:24]} 21. Rcb3 {[%emt 0:02:06]} Rd8 {[%emt 0:06:04]} 22. b5 {[%emt 0:01:10]} cxb5 {[%emt 0:01:21]} 23. Rxb5 {[%emt 0:01:51]} Rxb5 {[%emt 0:00:35]} 24. axb5 {[%emt 0:08:14]} Bc7 {[%emt 0:01:11]} 25. Qc3 {[%emt 0:08:31]} Rc8 {[%emt 0:04:30]} 26. Qb2 {[%emt 0:00:45]} Qd5 {[%emt 0:00:29]} 27. Rc1 {[%emt 0:00:38]} Bd6 {[%emt 0:01:56]} 28. Rxc8+ {[%emt 0:03:25]} Kxc8 {[%emt 0:00:05]} 29. Qc2+ {[%emt 0:01:04]} Kb8 {[%emt 0:00:20]} 30. Qa4 {[%emt 0:00:12]} f6 {[%emt 0:04:07]} 31. Kf1 {[%emt 0:00:49]} g5 {[%emt 0:02:22]} 32. Bd2 {[%emt 0:03:28]} Bc7 {[%emt 0:01:32]} 33. Qb4 {[%emt 0:04:30]} Qd6 {[%emt 0:01:23]} 34. Qc4 {[%emt 0:02:22]} Bb6 {[%emt 0:00:15]} 35. Bc3 {[%emt 0:00:14]} h5 {[%emt 0:00:44]} 36. Ke2 {[%emt 0:00:40]} f5 {[%emt 0:01:00]} 37. Bd2 {[%emt 0:02:56]} Bxd4 {[%emt 0:02:53]} 38. Bxg5 {[%emt 0:00:18]} f4 {[%emt 0:00:49]} 39. Kf3 {[%emt 0:01:25]} e5 {[%emt 0:00:05]} 40. g3 {[%emt 0:00:00]} fxg3 {[%emt 0:00:00]} 41. fxg3 {[%emt 0:16:40]} Qg6 {[%emt 0:03:38]} 42. Be7 {[%emt 0:00:19]} Qf5+ {[%emt 0:14:05]} 43. Ke2 {[%emt 0:00:09]} Qd7 {[%emt 0:05:17]} 44. Bb4 {[%emt 0:01:55]} b6 {[%emt 0:03:30]} 45. Kd2 {[%emt 0:01:52]} a6 {[%emt 0:03:31]} 46. bxa6 {[%emt 0:00:13]} Ka7 {[%emt 0:00:04]} 47. Bc3 {[%emt 0:03:21]} Qxh3 {[%emt 0:00:59]} 48. Qf7+ {[%emt 0:05:19]} Kxa6 {[%emt 0:00:05]} 49. Qa2+ {[%emt 0:00:35]} Kb7 {[%emt 0:00:09]} 50. Qd5+ {[%emt 0:00:09]} Ka7 {[%emt 0:00:52]} 51. Bxd4 {[%emt 0:01:03]} exd4 {[%emt 0:01:05]} 52. Qxd4 {[%emt 0:00:25]} Qg2+ {[%emt 0:00:14]} 53. Kc3 {[%emt 0:00:08]} Qxg3 {[%emt 0:00:10]} 54. Qd7+ {[%emt 0:00:07]} Ka6 {[%emt 0:00:51]} 55. Qc8+ {[%emt 0:00:19]} Ka5 {[%emt 0:00:25]} 56. Qa8+ {[%emt 0:00:14]} Kb5 {[%emt 0:00:06]} 57. Qd5+ {[%emt 0:00:17]} 1/2-1/2

[Event "79th GEO-ch 2020"]
[Site "Tbilisi"]
[Date "2020.01.30"]
[Round "1.2"]
[White "Shanava, Konstantine"]
[Black "Quparadze, Giga"]
[Result "0-1"]
[ECO "B47"]
[WhiteElo "2507"]
[BlackElo "2462"]
[Annotator "RC"]
[PlyCount "58"]
[EventDate "2020.01.29"]
[EventType "k.o."]
[EventCountry "GEO"]
[SourceTitle "playchess.com"]
[Source "ChessBase"]
[SourceQuality "1"]
[TimeControl "40/5400+30:1800+30"]

1. e4 {[%emt 0:00:00]} c5 {[%emt 0:00:00]} 2. Nf3 {[%emt 0:00:00]} Nc6 {[%emt 0:00:00]} 3. d4 {[%emt 0:00:03]} cxd4 {[%emt 0:00:00]} 4. Nxd4 {[%emt 0:00:02]} Qc7 {[%emt 0:00:00]} 5. Nc3 {[%emt 0:00:05]} e6 {[%emt 0:00:00]} 6. Nb3 {[%emt 0:03:17]} Nf6 {[%emt 0:00:19]} 7. Bd3 {[%emt 0:00:06]} a6 {[%emt 0:02:36]} 8. f4 {[%emt 0:02:49]} b5 {[%emt 0:01:15]} 9. O-O {[%emt 0:09:17]} h5 {[%emt 0:01:45]} 10. Kh1 {[%emt 0:03:30]} d6 {[%emt 0:00:18]} 11. Be3 {[%emt 0:00:58]} h4 {[%emt 0:00:27]} 12. Qf3 {[%emt 0:01:02]} h3 {[%emt 0:04:13]} 13. g4 {[%emt 0:01:00]} Bb7 {[%emt 0:00:20]} 14. g5 {[%emt 0:03:02]} Nd7 {[%emt 0:00:04]} 15. Kg1 {[%emt 0:03:17]} Nc5 {[%emt 0:02:44]} 16. a3 {[%emt 0:15:02]} g6 {[%emt 0:01:43]} 17. Nxc5 {[%emt 0:08:12]} dxc5 {[%emt 0:00:07]} 18. Qf2 {[%emt 0:00:06]} Nd4 {[%emt 0:04:30]} 19. Bxd4 {[%emt 0:15:14]} cxd4 {[%emt 0:00:06]} 20. Nb1 {[%emt 0:00:02]} e5 {[%emt 0:01:18]} 21. fxe5 {[%emt 0:09:11]} Rh5 {[%emt 0:00:07]} 22. Kh1 {[%emt 0:11:48]} Rxg5 {[%emt 0:01:46]} 23. Nd2 {[%emt 0:00:04]} Rg2 {[%emt 0:02:09]} 24. Qe1 {[%emt 0:00:40]} Qxe5 {[%emt 0:00:10]} 25. Nf3 {[%emt 0:00:04]} Qf4 {[%emt 0:00:16]} 26. Rf2 {[%emt 0:02:46]} f5 {[%emt 0:00:09]} 27. exf5+ {[%emt 0:10:15]} Kd8 28. Rxg2 {[%emt 0:01:31]} Qxf3 {[%emt 0:00:48]} 29. Qh4+ {[%emt 0:00:05]} Kc8 {[%emt 0:00:15]} 0-1

[Event "79th GEO-ch 2020"]
[Site "Tbilisi"]
[Date "2020.01.30"]
[Round "1.2"]
[White "Akhvlediani, Irakli"]
[Black "Arutinian, David"]
[Result "1/2-1/2"]
[ECO "E17"]
[WhiteElo "2353"]
[BlackElo "2551"]
[Annotator "ChessBase"]
[PlyCount "59"]
[EventDate "2020.01.29"]
[EventType "k.o."]
[EventCountry "GEO"]
[SourceTitle "playchess.com"]
[Source "ChessBase"]
[SourceQuality "1"]
[TimeControl "40/5400+30:1800+30"]

1. d4 Nf6 {[%emt 0:00:17]} 2. c4 {[%emt 0:11:00]} e6 {[%emt 0:00:13]} 3. Nf3 {[%emt 0:00:03]} b6 {[%emt 0:00:18]} 4. g3 {[%emt 0:01:15]} Bb7 {[%emt 0:00:10]} 5. Bg2 {[%emt 0:00:05]} Be7 {[%emt 0:00:12]} 6. O-O {[%emt 0:00:04]} O-O {[%emt 0:00:11]} 7. Re1 {[%emt 0:00:02]} Na6 {[%emt 0:00:18]} 8. Nc3 {[%emt 0:00:48]} d5 {[%emt 0:02:10]} 9. cxd5 {[%emt 0:00:09]} exd5 {[%emt 0:00:13]} 10. Bf4 {[%emt 0:02:42]} c5 {[%emt 0:00:17]} 11. dxc5 {[%emt 0:06:55]} Nxc5 {[%emt 0:01:18]} 12. Nd4 {[%emt 0:05:41]} Nfe4 {[%emt 0:04:07]} 13. Rc1 {[%emt 0:08:46]} Nxc3 {[%emt 0:18:31]} 14. Rxc3 {[%emt 0:00:43]} a5 {[%emt 0:00:08]} 15. Nf5 {[%emt 0:06:59]} Ne6 {[%emt 0:13:06]} 16. Rd3 {[%emt 0:12:42]} Bb4 {[%emt 0:05:08]} 17. Bd2 {[%emt 0:07:02]} Qf6 {[%emt 0:01:44]} 18. Ne3 {[%emt 0:16:31]} d4 {[%emt 0:06:08]} 19. Nd5 {[%emt 0:05:52]} Bxd5 {[%emt 0:00:47]} 20. Bxd5 {[%emt 0:00:01]} Bxd2 {[%emt 0:01:14]} 21. Qxd2 {[%emt 0:03:55]} Rad8 {[%emt 0:00:15]} 22. Bxe6 {[%emt 0:00:17]} fxe6 {[%emt 0:00:39]} 23. Rf3 {[%emt 0:00:03]} Qe5 {[%emt 0:03:52]} 24. Rxf8+ {[%emt 0:00:05]} Rxf8 {[%emt 0:00:58]} 25. Rd1 {[%emt 0:01:13]} Rd8 {[%emt 0:00:07]} 26. e3 {[%emt 0:02:40]} d3 {[%emt 0:00:12]} 27. Qc3 {[%emt 0:02:12]} Qd5 {[%emt 0:05:11]} 28. Qc7 {[%emt 0:00:54]} e5 {[%emt 0:00:38]} 29. Qxb6 {[%emt 0:02:36]} e4 {[%emt 0:00:07]} 30. Qb3 {[%emt 0:02:09]} 1/2-1/2

[Event "79th GEO-ch 2020"]
[Site "Tbilisi"]
[Date "2020.01.30"]
[Round "1.2"]
[White "Lomsadze, Davit"]
[Black "Gagunashvili, Merab"]
[Result "0-1"]
[ECO "A03"]
[WhiteElo "2306"]
[BlackElo "2580"]
[Annotator "ChessBase"]
[PlyCount "70"]
[EventDate "2020.01.29"]
[EventType "k.o."]
[EventCountry "GEO"]
[SourceTitle "playchess.com"]
[Source "ChessBase"]
[SourceQuality "1"]
[TimeControl "40/5400+30:1800+30"]

1. f4 {[%emt 0:00:00]} d5 {[%emt 0:00:10]} 2. Nf3 {[%emt 0:00:03]} g6 {[%emt 0:00:29]} 3. d4 {[%emt 0:01:02]} Bg7 {[%emt 0:00:44]} 4. e3 {[%emt 0:00:06]} Nf6 {[%emt 0:03:20]} 5. Bd3 {[%emt 0:02:49]} O-O {[%emt 0:00:56]} 6. O-O {[%emt 0:00:07]} c5 {[%emt 0:00:25]} 7. c3 {[%emt 0:00:10]} b6 {[%emt 0:00:48]} 8. Nbd2 {[%emt 0:01:41]} Ba6 {[%emt 0:00:57]} 9. Bxa6 {[%emt 0:04:28]} Nxa6 {[%emt 0:00:13]} 10. a4 {[%emt 0:01:42]} Nc7 {[%emt 0:01:34]} 11. Ne5 {[%emt 0:03:27]} Nce8 {[%emt 0:02:15]} 12. b4 {[%emt 0:02:37]} cxb4 {[%emt 0:14:58]} 13. cxb4 {[%emt 0:02:04]} a6 {[%emt 0:02:43]} 14. Ba3 {[%emt 0:06:56]} Nd6 {[%emt 0:01:20]} 15. Qe2 {[%emt 0:04:57]} b5 {[%emt 0:03:42]} 16. Nb3 {[%emt 0:01:59]} Nfe4 {[%emt 0:07:33]} 17. Nc5 {[%emt 0:03:58]} Nc3 {[%emt 0:10:53]} 18. Qd3 {[%emt 0:12:04]} Nxa4 {[%emt 0:01:24]} 19. Nxa4 {[%emt 0:03:39]} bxa4 {[%emt 0:00:09]} 20. Bc1 {[%emt 0:00:25]} f6 {[%emt 0:12:20]} 21. Nc6 {[%emt 0:05:23]} Qd7 {[%emt 0:00:35]} 22. Na5 {[%emt 0:00:02]} Qb5 {[%emt 0:00:48]} 23. Qa3 {[%emt 0:01:17]} e5 {[%emt 0:05:23]} 24. Qxa4 {[%emt 0:03:11]} exd4 {[%emt 0:04:20]} 25. exd4 {[%emt 0:00:28]} Rac8 {[%emt 0:01:15]} 26. f5 {[%emt 0:05:53]} Nxf5 {[%emt 0:01:29]} 27. Nb3 {[%emt 0:01:03]} Rc4 {[%emt 0:01:02]} 28. Qxb5 {[%emt 0:02:08]} axb5 {[%emt 0:00:05]} 29. Re1 {[%emt 0:00:34]} Rxb4 {[%emt 0:02:27]} 30. Nc5 {[%emt 0:01:05]} Nxd4 {[%emt 0:00:49]} 31. Re7 {[%emt 0:01:26]} Rc4 {[%emt 0:00:59]} 32. Bb2 {[%emt 0:01:00]} Nf5 {[%emt 0:02:06]} 33. Rc7 {[%emt 0:00:04]} Bh6 {[%emt 0:03:28]} 34. Ne6 {[%emt 0:01:24]} Re8 {[%emt 0:00:25]} 35. Rd7 {[%emt 0:03:49]} Rxe6 {[%emt 0:01:49]} 0-1

[Event "79th GEO-ch 2020"]
[Site "Tbilisi"]
[Date "2020.02.08"]
[Round "4.2"]
[White "Sanikidze, Tornike"]
[Black "Paichadze, Luka"]
[Result "0-1"]
[ECO "E11"]
[WhiteElo "2451"]
[BlackElo "2550"]
[Annotator "ChessBase"]
[PlyCount "128"]
[EventDate "2020.01.29"]
[EventType "k.o."]
[EventCountry "GEO"]
[SourceTitle "playchess.com"]
[Source "ChessBase"]
[SourceQuality "1"]
[TimeControl "40/5400+30:1800+30"]

1. d4 {[%emt 0:00:00]} Nf6 {[%emt 0:00:00]} 2. c4 {[%emt 0:00:00]} e6 {[%emt 0:00:00]} 3. Nf3 {[%emt 0:00:20]} Bb4+ {[%emt 0:00:07]} 4. Bd2 {[%emt 0:00:59]} a5 {[%emt 0:00:39]} 5. g3 {[%emt 0:00:31]} b6 {[%emt 0:01:20]} 6. Bg2 {[%emt 0:02:34]} Bb7 {[%emt 0:00:25]} 7. O-O {[%emt 0:00:20]} O-O {[%emt 0:00:32]} 8. Bf4 {[%emt 0:01:19]} Be7 {[%emt 0:02:45]} 9. Nc3 {[%emt 0:00:23]} Ne4 {[%emt 0:08:22]} 10. Nb5 {[%emt 0:09:27]} Na6 {[%emt 0:09:24]} 11. Rc1 {[%emt 0:06:29]} c6 {[%emt 0:08:14]} 12. Nc3 {[%emt 0:12:18]} Nxc3 {[%emt 0:00:24]} 13. bxc3 {[%emt 0:07:44]} c5 {[%emt 0:08:10]} 14. d5 {[%emt 0:16:05]} exd5 {[%emt 0:11:13]} 15. cxd5 {[%emt 0:01:17]} b5 {[%emt 0:00:23]} 16. d6 {[%emt 0:06:55]} Bf6 {[%emt 0:00:13]} 17. Qd3 {[%emt 0:02:32]} Bc6 {[%emt 0:08:08]} 18. c4 {[%emt 0:09:09]} Rb8 {[%emt 0:04:38]} 19. cxb5 {[%emt 0:10:57]} Bxb5 {[%emt 0:00:37]} 20. Qd2 {[%emt 0:00:01]} Re8 {[%emt 0:01:45]} 21. Rfe1 {[%emt 0:00:06]} Bc6 {[%emt 0:00:28]} 22. h4 {[%emt 0:02:45]} Rb2 {[%emt 0:06:34]} 23. Rc2 {[%emt 0:00:14]} Rxc2 {[%emt 0:00:18]} 24. Qxc2 {[%emt 0:00:10]} Nb4 {[%emt 0:00:12]} 25. Qc1 {[%emt 0:02:33]} Qb6 {[%emt 0:06:39]} 26. a3 {[%emt 0:00:11]} Na2 {[%emt 0:07:55]} 27. Qc4 {[%emt 0:02:05]} Nc3 {[%emt 0:00:11]} 28. Ng5 {[%emt 0:01:36]} Bxg5 {[%emt 0:04:50]} 29. hxg5 {[%emt 0:00:02]} Nb5 {[%emt 0:00:08]} 30. Bxc6 {[%emt 0:05:20]} Qxc6 {[%emt 0:00:04]} 31. Be3 {[%emt 0:00:14]} Nxa3 {[%emt 0:08:12]} 32. Qxc5 {[%emt 0:00:01]} Qxc5 {[%emt 0:00:28]} 33. Bxc5 {[%emt 0:00:01]} Nc2 {[%emt 0:01:33]} 34. Rb1 {[%emt 0:00:25]} f6 {[%emt 0:00:16]} 35. Rb7 {[%emt 0:00:46]} Re5 {[%emt 0:00:45]} 36. Ba7 {[%emt 0:00:51]} a4 {[%emt 0:01:00]} 37. Rc7 {[%emt 0:01:12]} Rxe2 {[%emt 0:00:22]} 38. Bc5 {[%emt 0:00:36]} a3 {[%emt 0:00:36]} 39. Ra7 {[%emt 0:00:20]} fxg5 {[%emt 0:00:34]} 40. Bxa3 {[%emt 0:00:00]} Nxa3 {[%emt 0:00:00]} 41. Rxa3 {[%emt 0:02:51]} Rd2 {[%emt 0:03:00]} 42. Ra6 {[%emt 0:00:01]} Kf7 {[%emt 0:00:11]} 43. g4 {[%emt 0:00:43]} Ke6 {[%emt 0:00:22]} 44. Kg2 {[%emt 0:01:22]} Rxd6 {[%emt 0:00:11]} 45. Ra8 {[%emt 0:00:30]} Kf7 {[%emt 0:01:42]} 46. Kf3 {[%emt 0:00:23]} g6 {[%emt 0:03:34]} 47. Kg3 {[%emt 0:02:00]} h5 {[%emt 0:00:55]} 48. gxh5 {[%emt 0:08:13]} gxh5 {[%emt 0:00:07]} 49. Rh8 {[%emt 0:00:03]} Kg6 {[%emt 0:00:52]} 50. f3 {[%emt 0:00:11]} h4+ {[%emt 0:01:42]} 51. Kh3 {[%emt 0:00:11]} Rf6 {[%emt 0:00:36]} 52. Kg2 {[%emt 0:00:10]} Kf5 {[%emt 0:00:43]} 53. Rd8 {[%emt 0:00:57]} d6 {[%emt 0:00:38]} 54. Rd7 {[%emt 0:01:45]} Kf4 {[%emt 0:01:22]} 55. Rd8 {[%emt 0:00:26]} h3+ {[%emt 0:06:51]} 56. Kxh3 {[%emt 0:01:07]} Kxf3 {[%emt 0:00:06]} 57. Kh2 {[%emt 0:00:02]} Ke4 {[%emt 0:00:47]} 58. Kg3 {[%emt 0:04:55]} d5 {[%emt 0:00:05]} 59. Kg4 {[%emt 0:00:10]} Rf5 {[%emt 0:01:09]} 60. Rd7 {[%emt 0:00:42]} Re5 {[%emt 0:00:06]} 61. Kg3 {[%emt 0:00:14]} d4 {[%emt 0:00:34]} 62. Kf2 {[%emt 0:00:04]} Kd3 {[%emt 0:00:22]} 63. Rd8 {[%emt 0:03:27]} Kc3 {[%emt 0:00:07]} 64. Rc8+ {[%emt 0:00:08]} Kd2 {[%emt 0:00:05]} 0-1